Cogmind - Beta 10.2 @@@ ROGUE MODE // 2021.04.14 @ 01:45:56 // Winter2019/RPGLIKE Player: Chompie Result: Heading to fleet! Performance ------------- Evolutions (9) 4500 Regions Visited (18) 3600 Robots Destroyed (273) 1365 Value Destroyed (13033) 13033 Prototype IDs (28) 560 Alien Tech Used (6) 1200 Bonus (11079) 11079 TOTAL SCORE: 35337 Bonus ------- High Alert Combat Kills 1683 Follower Combat Kills 1346 Entered Garrisons 600 Used RIF Installer 1500 Used Core Reset Matrix 3000 Win 3000 Friendly Fire -50 Cogmind --------- Core Integrity 296/1750 Matter 300/300 Energy 286/290 System Corruption 6% Temperature Cool (4) Movement Flying (26) Location To Fleet Rendezvous Parts ------- > --- POWER (2) -------- Micro Fission Core Micro Fission Core > --- PROPULSION (5) --- Improved VTOL Module Improved VTOL Module Nuclear Pulse Array Improved Diametric Drive > --- UTILITY (10) ----- Advanced Visual Processing Unit Advanced Sensor Array Advanced Signal Interpreter Experimental Signal Interpreter Advanced Target Analyzer Reaction Control System Advanced Phase Shifter Improved Cloaking Device Centrium Medium Armor Plating Improved System Restoration Module > --- WEAPON (4) ------- KE Penetrator Improved KE Penetrator Hypervelocity Railgun Force Lance > --- INVENTORY (7) ---- Improved Stasis Canceller Point Defense Array KE Penetrator Hypervelocity Railgun Supercharged Sigix Terminator Advanced Remote Datajack Peak State ------------ > --- POWER ------------ Micro Fission Core Micro Fission Core > --- PROPULSION ------- Improved VTOL Module Improved VTOL Module Field Propulsion Array Improved Diametric Drive > --- UTILITY ---------- Advanced Sensor Array Advanced Signal Interpreter Experimental Signal Interpreter Advanced Target Analyzer Improved Stasis Canceller Advanced Phase Shifter Improved Cloaking Device Centrium Medium Armor Plating Point Defense Array Improved System Restoration Module > --- WEAPON ----------- KE Penetrator Improved KE Penetrator Hypervelocity Railgun Stasis Beam > --- INVENTORY -------- Layered Medium Armor Plating Subatomic Replicator KE Penetrator Hypervelocity Railgun Sigix Terminator Advanced Remote Datajack [Rating: 146] Favorites ----------- Power Micro Fission Core Engine Light Deuterium Engine Power Core Micro Fission Core Propulsion Improved VTOL Module Leg Aluminum Leg Flight Unit Improved VTOL Module Utility Advanced Sensor Array Device Advanced Sensor Array Processor Experimental Signal Interpreter Hackware Relay Coupler [Swarmer] Protection Improved Medium Armor Plating Weapon KE Penetrator Energy Gun EM Pulse Gun Energy Cannon Beam Cannon Ballistic Gun KE Penetrator Launcher EMP Blaster Special Weapon Remote Datajack Impact Weapon Impact Mace Slashing Weapon Power Sword Piercing Weapon Force Lance Special Melee Weapon Improved Datajack Build | -11 -10 -9 -8 -7 -7 -7 -7 -6 -6 -6 -5 -5 -4 -3 -3 -2 -2 -1 ------- Run | Scr Mat Mat Mat Fac Gar Fac Gar Fac Low Low Fac Ext Fac Res Gar Res Qua Acc Slots Evolved 17 | 3 2 2 1 2 2 . . 1 . . 2 1 . . . 1 . . Power 1 | . . . . . . . . . . . 1 . . . . . . . Propulsion 4 | 1 . 2 . . . . . . . . 1 . . . . . . . Utility 9 | 1 2 . 1 2 . . . 1 . . . 1 . . . 1 . . Weapon 3 | 1 . . . . 2 . . . . . . . . . . . . . Parts Attached 236 | 5 8 18 12 14 10 18 14 8 2 1 15 12 15 17 11 11 20 25 Power 16 | 1 2 3 3 . . . 2 1 . . 2 2 . . . . . . Engine 3 | 1 . 1 1 . . . . . . . . . . . . . . . Core 13 | . 2 2 2 . . . 2 1 . . 2 2 . . . . . . Reactor . | . . . . . . . . . . . . . . . . . . . Propulsion 22 | 2 . 8 . 1 . 3 . . 1 . 1 . . 4 . . . 2 Treads . | . . . . . . . . . . . . . . . . . . . Leg 2 | 2 . . . . . . . . . . . . . . . . . . Wheel . | . . . . . . . . . . . . . . . . . . . Hover . | . . . . . . . . . . . . . . . . . . . Flight 20 | . . 8 . 1 . 3 . . 1 . 1 . . 4 . . . 2 Utility 109 | . 5 2 6 7 1 5 4 6 1 1 7 6 7 11 4 7 15 14 Device 62 | . 3 . 2 5 . 3 . 1 . 1 3 4 4 7 3 5 9 12 Storage . | . . . . . . . . . . . . . . . . . . . Processor 9 | . 1 . 1 . 1 . . . . . 1 . . 1 . . 3 1 Hackware 8 | . . . . . . . 3 1 . . . 1 1 . . 1 1 . Protection 30 | . 1 2 3 2 . 2 1 4 1 . 3 1 2 3 1 1 2 1 Artifact . | . . . . . . . . . . . . . . . . . . . Weapon 89 | 2 1 5 3 6 9 10 8 1 . . 5 4 8 2 7 4 5 9 Energy Gun 1 | 1 . . . . . . . . . . . . . . . . . . Energy Cannon 1 | . 1 . . . . . . . . . . . . . . . . . Ballistic Gun 44 | 1 . 4 2 4 7 2 4 . . . 2 2 1 2 2 3 3 5 Ballistic Cannon . | . . . . . . . . . . . . . . . . . . . Launcher 14 | . . . 1 1 . 1 4 . . . . 2 2 . 2 . 1 . Special Weapon 11 | . . . . . . 2 . 1 . . . . 3 . 1 . 1 3 Impact Weapon 1 | . . . . . . . . . . . 1 . . . . . . . Slashing Weapon 7 | . . . . 1 2 2 . . . . 2 . . . . . . . Piercing Weapon 6 | . . . . . . . . . . . . . 2 . 2 1 . 1 Special Melee Weapon 4 | . . 1 . . . 3 . . . . . . . . . . . . Unidentified Prototypes 17 | . . 1 . 1 . 1 . . . . 4 . . 4 . 1 5 . Parts Lost 7 | . . . . . . . 1 . . . . 3 1 1 . . 1 . Power . | . . . . . . . . . . . . . . . . . . . Propulsion . | . . . . . . . . . . . . . . . . . . . Utility 7 | . . . . . . . 1 . . . . 3 1 1 . . 1 . Weapon . | . . . . . . . . . . . . . . . . . . . Highest Loss Streak 2 | . . . . . . . 1 . . . . 2 1 1 . . 1 . Average Slot Usage (%) 96 | . 89 94 99 97 94 93 99 99 99 100 99 99 99 99 99 99 96 92 Engine 1 | . . . 1 7 6 6 . . . . . . . . . . . . Core 7 | . 11 9 6 . . . 5 5 5 5 9 10 10 10 10 9 9 9 Leg 2 | . 24 . . . . . . . . . . . . . . . . . Flight 23 | . . 27 33 28 26 25 25 24 23 23 25 25 25 24 25 23 23 19 Device 20 | . 20 19 16 29 33 31 25 17 17 19 15 15 19 19 15 19 17 24 Processor 7 | . 3 9 16 10 6 6 4 . . . 4 5 5 5 10 9 6 15 Hackware 7 | . . . . . . . 6 18 17 17 15 18 15 14 10 12 11 . Protection 6 | . 2 9 7 7 6 5 6 5 10 8 5 5 5 5 10 4 6 3 Ballistic Gun 12 | . 12 17 15 11 9 10 10 11 11 11 10 9 10 10 13 15 10 13 Special Weapon 1 | . . . . . . . . 5 5 5 5 4 4 4 1 . 2 . Slashing Weapon 1 | . . . . . 4 6 6 5 5 5 1 . . . . . . . Piercing Weapon 1 | . . . . . . . . . . . . . 4 5 3 3 4 3 Naked Turns . | . . . . . . . . . . . . . . . . . . . Heaviest Build 58 | 7 15 19 18 28 35 35 34 27 30 30 38 40 46 50 53 50 56 58 Greatest Support 69 | 25 25 32 32 35 35 35 35 35 36 36 42 42 47 55 53 53 58 69 Greatest Overweight (x) 1 | . . . 1 . . . . . 1 . . . . 1 . . . . Average Overweight (x) . | . . . . . . . . . . . . . . . . . . . Largest Inventory Capacity 7 | 1 1 3 3 4 6 7 7 7 7 7 7 7 7 7 7 7 7 7 Average Capacity 5 | . 1 2 3 3 5 6 7 7 7 7 7 7 7 7 7 7 7 7 Most Carried 7 | 1 1 3 3 4 6 7 7 7 7 7 7 7 7 7 7 7 7 7 Average Carried 5 | . . 1 2 3 5 6 6 6 6 6 6 6 6 6 6 6 6 6 Final Capacity 7 | 1 1 3 3 4 6 7 7 7 7 7 7 7 7 7 7 7 7 7 Final Carried 7 | 1 1 3 3 4 6 7 7 7 6 7 7 5 6 6 7 7 7 7 Class Distribution -------------------- 20% | Hacker-Ninja 18% | Hacker-Sprinter 14% | Hacker-Scout 11% | Bothacker-Sprinter 10% | Mutant 9% | Scavenger-Mutant 4% | Sprinter 4% | Bothacker-Ninja 3% | Bothacker-Scout Dominant Class ---------------- Mutant | -10/Materials Scavenger-Mutant | -9/Materials Sprinter | -8/Materials Hacker-Sprinter | -7/Factory Hacker-Sprinter | -7/Garrison Hacker-Sprinter | -7/Factory Hacker-Sprinter | -7/Garrison Bothacker-Sprinter | -6/Factory Bothacker-Sprinter | -6/Lower Caves Bothacker-Sprinter | -6/Lower Caves Bothacker-Ninja | -5/Factory Hacker-Ninja | -5/Extension Hacker-Scout | -4/Factory Hacker-Scout | -3/Research Hacker-Scout | -3/Garrison Hacker-Scout | -2/Research Hacker-Ninja | -2/Quarantine Hacker-Ninja | -1/Access Resources | -11 -10 -9 -8 -7 -7 -7 -7 -6 -6 -6 -5 -5 -4 -3 -3 -2 -2 -1 ----------- Run | Scr Mat Mat Mat Fac Gar Fac Gar Fac Low Low Fac Ext Fac Res Gar Res Qua Acc Matter Collected 7666 | 265 218 862 566 416 644 269 568 150 65 . 380 600 473 328 474 516 365 507 Remotely 141 | . 141 . . . . . . . . . . . . . . . . . Salvage Created 11907 | 87 756 1184 758 430 1023 865 1016 274 91 . 788 671 611 657 524 1011 623 538 Parts 652 | 1 38 94 46 33 64 46 48 7 1 . 31 26 36 29 38 55 32 27 Haulers Intercepted 19 | . 2 5 2 1 . 2 . 2 . . 1 . . 2 . . 1 1 Recyclers Shooed 6 | . . . . . . 1 . . . . . 3 . . . 1 1 . Parts Field Recycled . | . . . . . . . . . . . . . . . . . . . Retrieved Matter . | . . . . . . . . . . . . . . . . . . . Parts Self-Destructed . | . . . . . . . . . . . . . . . . . . . Prevented 1 | . . . . . . . . . 1 . . . . . . . . . Kills | -11 -10 -9 -8 -7 -7 -7 -7 -6 -6 -6 -5 -5 -4 -3 -3 -2 -2 -1 ------- Run | Scr Mat Mat Mat Fac Gar Fac Gar Fac Low Low Fac Ext Fac Res Gar Res Qua Acc Combat Hostiles Destroyed 195 | . 10 23 20 12 23 11 21 3 1 . 9 8 12 4 16 9 6 7 Melee 64 | . . . . 4 8 4 4 3 1 . 6 1 2 4 11 4 6 6 Guns 108 | . 9 22 15 5 15 7 9 . . . 2 4 10 . 4 5 . 1 Cannons 1 | . . 1 . . . . . . . . . . . . . . . . AOE 17 | . 1 . 4 3 . . 7 . . . . 1 . . 1 . . . Classes Destroyed 16 | 2 4 4 . 1 3 . . . . . . 1 . . . . 1 . Worker 6 | . . 1 . . . . . . . . 2 . . 2 . 1 . . Builder 1 | . . . . . . . . . . . . 1 . . . . . . Tunneler 2 | 1 . . . . . 1 . . . . . . . . . . . . Hauler 19 | . 2 5 2 1 . 2 . 2 . . 1 . . 2 . . 1 1 Recycler 17 | 1 2 . 1 1 . 4 . . . . 2 1 . 2 . 2 1 . Operator 3 | . 2 . . . . 1 . . . . . . . . . . . . Watcher 30 | . 2 4 2 . . 1 . . . . 5 3 4 2 . 3 1 3 Swarmer 48 | . . 5 6 4 4 . 9 . . . 2 . 5 . 9 3 . 1 Grunt 74 | . 10 10 10 5 9 8 7 2 . . 1 4 1 2 4 . 1 . Brawler 3 | . . . . . 3 . . . . . . . . . . . . . Duelist 5 | . . 1 2 . 2 . . . . . . . . . . . . . Sentry 27 | . . 7 2 2 . 1 4 . 1 . 4 2 1 1 1 . . 1 Specialist 3 | . . . . . 3 . . . . . . . . . . . . . Hunter 18 | . . . . . 2 1 1 1 . . 2 1 1 . 2 4 3 . Programmer 16 | . . . . 1 . 1 . . . . . 1 4 1 . 2 1 5 Alpha 7 1 | . . . . . . . . . . . . . . . . . 1 . Best Kill Streak 9 | 1 3 4 9 5 7 5 8 2 1 . 3 2 5 3 6 5 1 2 Combat Bots Only 8 | . 2 3 8 4 7 3 8 1 1 . 2 2 5 1 6 3 1 2 Max Kills in Single Turn 3 | 1 2 2 3 2 2 2 3 1 1 . 2 1 2 1 1 1 1 2 Gunslinging 1 | . . 1 . . 1 . . . . . . . . . . . . . Exploded 3 | . 1 . 3 2 . . 3 . . . . 1 . . 1 . . . Melee 1 | . . . . 1 1 1 1 1 1 . 1 1 1 1 1 1 1 1 Uniques/NPCs Destroyed . | . . . . . . . . . . . . . . . . . . . Combat | -11 -10 -9 -8 -7 -7 -7 -7 -6 -6 -6 -5 -5 -4 -3 -3 -2 -2 -1 -------- Run | Scr Mat Mat Mat Fac Gar Fac Gar Fac Low Low Fac Ext Fac Res Gar Res Qua Acc Damage Taken 16649 | . 376 1215 921 735 1249 434 1321 394 399 . 1704 1577 1711 659 1403 573 845 1133 Core 11663 | . 300 910 625 515 936 316 936 276 241 . 1203 1044 1229 501 879 398 563 791 Absorbed by Shields 381 | . . . . 60 . . 204 . . . . 101 . . 11 . . 5 Redirected to Core 9763 | . 232 721 527 362 753 220 691 256 187 . 989 921 1010 442 813 380 506 753 Core Remaining (%) 65 | 100 91 71 100 . . . 60 . . 77 . 100 21 . 49 . 38 16 Volleys Fired 673 | 5 47 100 71 37 68 34 48 13 5 . 31 66 51 15 29 26 11 16 Largest 4 | 2 2 2 2 2 2 2 2 1 2 . 2 2 3 2 4 4 3 3 Hottest 148 | 60 60 80 50 50 56 56 61 30 56 . 61 66 99 66 134 148 108 108 Shots Fired 1299 | 10 94 200 125 69 136 58 75 13 10 . 56 109 91 22 75 88 21 47 Gun 1154 | 10 94 176 112 66 136 58 56 . 10 . 50 82 76 14 64 88 15 47 Cannon 24 | . . 24 . . . . . . . . . . . . . . . . Launcher 49 | . . . 13 3 . . 19 . . . . 5 3 . 6 . . . Special 72 | . . . . . . . . 13 . . 6 22 12 8 5 . 6 . Kinetic 1102 | 5 47 176 112 66 136 58 56 . 10 . 50 82 76 14 64 88 15 47 Thermal 24 | . . 24 . . . . . . . . . . . . . . . . Explosive . | . . . . . . . . . . . . . . . . . . . Electromagnetic 101 | 5 47 . 13 3 . . 19 . . . . 5 3 . 6 . . . Robot Hit Streak 18 | 4 17 11 9 18 15 5 17 8 1 . 10 9 9 8 3 6 3 4 Robot Miss Streak 8 | 1 3 6 3 5 6 3 3 3 3 . 3 5 3 2 5 6 8 4 Penetration Max 1 | . . . . . . 1 1 . . . 1 1 1 . 1 1 1 1 Secondary Targets 16 | . 3 4 2 1 3 . 1 . . . . . . . 1 1 . . Max Gunslinging Chain 1 | . 1 1 1 1 1 . 1 . . . . . . . 1 1 . . Shots Hit Robots 1016 | 8 65 127 84 56 104 48 67 28 7 . 72 79 65 41 53 41 38 33 Core Hits 451 | 2 30 46 37 22 44 30 40 6 3 . 25 28 27 15 32 26 18 20 Critical Hits 74 | . . 1 . 1 1 2 4 1 . . 3 4 9 3 12 17 6 10 Critical Kills 27 | . . . . 1 . . 1 . . . 2 . 2 . 3 9 2 7 Critical Parts Destroyed 45 | . . 1 . . 1 2 3 1 . . 1 4 7 2 9 8 3 3 Melee Attacks 399 | . . . . 12 32 20 37 24 3 . 56 14 23 27 32 19 40 60 Impact 50 | . . . . . . . . . . . 35 14 1 . . . . . Slashing 146 | . . . . 12 32 20 34 24 3 . 21 . . . . . . . Piercing 200 | . . . . . . . . . . . . . 22 27 32 19 40 60 Sneak Attacks 30 | . . . . 1 . 6 . 3 . . 4 2 1 9 1 . 3 . Combat Hostiles 7 | . . . . . . 1 . 1 . . . 1 . 3 1 . . . Follow-up Attacks . | . . . . . . . . . . . . . . . . . . . Damage Inflicted 32678 | 157 1109 2331 2165 1382 2589 2288 2529 1093 204 . 2406 2348 2360 2597 2493 1001 2073 1553 Guns 13625 | 110 957 1845 1368 777 1357 780 1077 . 64 . 759 1359 1375 247 653 605 64 228 Cannons 160 | . . 160 . . . . . . . . . . . . . . . . Explosions 2783 | 47 152 326 797 104 . . 758 . . . . 359 60 . 180 . . . Melee 16110 | . . . . 501 1232 1508 694 1093 140 . 1647 630 925 2350 1660 396 2009 1325 Ramming . | . . . . . . . . . . . . . . . . . . . Kinetic 13111 | 55 498 1845 1368 777 1357 780 1077 . 64 . 759 1359 1375 247 653 605 64 228 Thermal 821 | 47 152 160 261 . . . 34 . . . . 167 . . . . . . Explosive 326 | . . 326 . . . . . . . . . . . . . . . . Electromagnetic 2310 | 55 459 . 536 104 . . 724 . . . . 192 60 . 180 . . . Impact 1682 | . . . . . . . . . . . 995 630 57 . . . . . Slashing 5820 | . . . . 501 1232 1508 694 1093 140 . 652 . . . . . . . Piercing 8608 | . . . . . . . . . . . . . 868 2350 1660 396 2009 1325 Highest Corruption 9 | . 6 . . 2 2 . 1 . . . 2 6 6 9 6 2 1 6 Average Corruption 3 | . 4 . . 1 1 . 1 . . . 1 3 5 5 6 1 1 3 Corruption Purged 17 | . . . . . 2 . . . . . 2 4 2 3 . 2 2 . Effects 94 | . 17 . . . . . 2 . . . 2 11 15 10 15 . 3 19 Message Errors 26 | . 4 . . . . . 1 . . . 1 2 7 4 1 . . 6 Matter Fused 13 | . 2 . . . . . . . . . . 3 3 . 3 . . 2 Heat Flow Errors 5 | . 4 . . . . . . . . . . . . 1 . . . . Energy Discharges 11 | . 3 . . . . . . . . . . 3 . 1 3 . . 1 Parts Rejected 3 | . . . . . . . . . . . . . . . 2 . . 1 Data Loss (minor) 15 | . 2 . . . . . 1 . . . 1 3 . 3 . . 1 4 Misfires 1 | . . . . . . . . . . . . . . . . . . 1 Targeting Errors 18 | . 2 . . . . . . . . . . . 4 1 5 . 2 4 Weapon Failures 2 | . . . . . . . . . . . . . 1 . 1 . . . Overload Shots . | . . . . . . . . . . . . . . . . . . . Overflow Damage 2064 | 12 15 132 . 144 103 467 25 24 . . 198 316 41 317 57 . 116 97 Projectiles 50 | . . . . . . . . . . . 50 . . . . . . . Explosions 241 | 12 15 132 . . . . . . . . . 82 . . . . . . Melee 1773 | . . . . 144 103 467 25 24 . . 148 234 41 317 57 . 116 97 Knockbacks 13 | . . . . . . . . . . . 8 4 1 . . . . . Impact 11 | . . . . . . . . . . . 6 4 1 . . . . . Kinetic . | . . . . . . . . . . . . . . . . . . . Secondary 2 | . . . . . . . . . . . 2 . . . . . . . Self-Inflicted Damage 243 | . 21 114 9 16 . . 83 . . . . . . . . . . . Shots 7 | . 1 1 1 1 . . 3 . . . . . . . . . . . Rammed . | . . . . . . . . . . . . . . . . . . . Targets Rammed . | . . . . . . . . . . . . . . . . . . . Kicked . | . . . . . . . . . . . . . . . . . . . Crushed . | . . . . . . . . . . . . . . . . . . . Highest Temperature 364 | . 248 15 46 202 80 11 16 13 9 . 26 13 35 257 230 364 . 50 Average Temperature 41 | . 59 4 11 22 14 6 5 4 3 . 11 4 10 73 90 87 . 21 Received Heat Transfer 2666 | . 204 384 279 186 333 132 313 72 102 . 216 217 24 27 132 . . 45 Siege Activations . | . . . . . . . . . . . . . . . . . . . Robots Corrupted 5 | . . . 1 . . . 3 . . . . 1 . . . . . . Combat Hostiles 3 | . . . 1 . . . 1 . . . . 1 . . . . . . Parts Fried 19 | . . . 4 . . . 1 . . . 5 6 1 . 2 . . . Impact Corruptions 17 | . . . . . . . . . . . 10 6 1 . . . . . Robots Melted . | . . . . . . . . . . . . . . . . . . . Combat Hostiles . | . . . . . . . . . . . . . . . . . . . Parts Melted 6 | . . . . . . . . . . . 1 1 1 1 2 . . . Heat Transferred 883 | 50 200 333 150 . . . 50 . . . . 100 . . . . . . Parts Sabotaged . | . . . . . . . . . . . . . . . . . . . Parts Stolen . | . . . . . . . . . . . . . . . . . . . Parts Stripped . | . . . . . . . . . . . . . . . . . . . Power Chain Reactions 8 | 1 4 . . . . . 2 . . . . 1 . . . . . . Missiles Intercepted . | . . . . . . . . . . . . . . . . . . . Alert | -11 -10 -9 -8 -7 -7 -7 -7 -6 -6 -6 -5 -5 -4 -3 -3 -2 -2 -1 ------- Run | Scr Mat Mat Mat Fac Gar Fac Gar Fac Low Low Fac Ext Fac Res Gar Res Qua Acc Peak Influence 1389 | 10 156 493 1004 608 1274 708 1389 826 . . 419 500 472 228 677 630 448 683 Initial 728 | . 6 44 147 456 264 668 495 728 . . 258 131 245 87 117 380 292 232 Average 366 | 4 69 180 354 412 750 576 1013 753 . . 209 185 303 119 403 449 325 209 Maximum Alert Level 4 | . . 2 3 2 4 3 4 3 . . 2 2 2 1 2 2 2 2 Low Security (%) 33 | 100 100 54 30 . . . . . . . 43 50 2 85 18 . 3 68 Level 1 30 | . . 38 29 48 21 . . . . . 55 42 88 14 28 37 76 10 Level 2 22 | . . 6 31 51 24 99 9 17 . . . 6 8 . 52 62 19 20 Level 3 10 | . . . 8 . 37 . 54 82 . . . . . . . . . . Level 4 3 | . . . . . 17 . 36 . . . . . . . . . . . Level 5 . | . . . . . . . . . . . . . . . . . . . High Security . | . . . . . . . . . . . . . . . . . . . Max Security . | . . . . . . . . . . . . . . . . . . . Squads Dispatched 51 | . 4 2 4 11 . 7 . 5 . . 2 3 6 2 . 2 1 2 Investigation 19 | . 1 2 . 3 . 3 . 2 . . 1 2 4 1 . . . . Extermination 8 | . . . . 1 . 2 . . . . . . 1 1 . 1 1 1 Reinforcement 17 | . 3 . 3 4 . 2 . 1 . . 1 1 1 . . . . 1 Assault 2 | . . . 1 . . . . . . . . . . . . 1 . . Garrison 5 | . . . . 3 . . . 2 . . . . . . . . . . Intercept . | . . . . . . . . . . . . . . . . . . . Construction Impeded 3 | . . . . . . . . . . . 1 1 1 . . . . . Haulers Reinforced 3 | . . . . 1 . 1 . . . . . . . . . . . 1 Stealth | -11 -10 -9 -8 -7 -7 -7 -7 -6 -6 -6 -5 -5 -4 -3 -3 -2 -2 -1 --------- Run | Scr Mat Mat Mat Fac Gar Fac Gar Fac Low Low Fac Ext Fac Res Gar Res Qua Acc Distress Signals 22 | . 2 4 4 . . . . . . . 1 3 3 1 . 1 1 2 Communications Jammed . | . . . . . . . . . . . . . . . . . . . Distress Signals . | . . . . . . . . . . . . . . . . . . . Times Spotted 456 | . 29 46 81 21 25 18 33 7 2 . 20 29 28 14 27 17 15 44 Peak Tracking Total 14 | . 4 5 12 5 5 4 8 1 1 . 5 4 5 4 4 6 3 14 Tactical Retreats 57 | . 4 4 12 2 3 2 8 . 1 . 1 3 3 1 4 2 . 7 Traps | -11 -10 -9 -8 -7 -7 -7 -7 -6 -6 -6 -5 -5 -4 -3 -3 -2 -2 -1 ------- Run | Scr Mat Mat Mat Fac Gar Fac Gar Fac Low Low Fac Ext Fac Res Gar Res Qua Acc Traps Triggered 39 | . 4 . . 3 7 1 11 . . . 2 3 2 2 2 . . 2 Indirectly 8 | . . . . . . . 8 . . . . . . . . . . . Trap Hack Attempts 9 | . . . . . . . 9 . . . . . . . . . . . Triggered . | . . . . . . . . . . . . . . . . . . . Disarmed . | . . . . . . . . . . . . . . . . . . . Reprogrammed 4 | . . . . . . . 4 . . . . . . . . . . . Reused . | . . . . . . . . . . . . . . . . . . . Traps Extracted . | . . . . . . . . . . . . . . . . . . . Installed . | . . . . . . . . . . . . . . . . . . . Triggered 2 | . . . . . . . . . . 2 . . . . . . . . Machines | -11 -10 -9 -8 -7 -7 -7 -7 -6 -6 -6 -5 -5 -4 -3 -3 -2 -2 -1 ---------- Run | Scr Mat Mat Mat Fac Gar Fac Gar Fac Low Low Fac Ext Fac Res Gar Res Qua Acc Machines Disabled 27 | . 2 2 1 2 4 1 5 . . . . 2 2 . 2 . 4 . Max in Single Turn 2 | . 1 2 1 2 1 1 1 . . . . 1 1 . 1 . 1 . Garrison Access 5 | . . . . . . . . . . . 2 . . . . . . 3 Garrison Relay 10 | . . . . . 4 . 4 . . . . . . . 2 . . . Energy Cycler 1 | . . . . . . . . . . . . 1 . . . . . . Machines Sabotaged . | . . . . . . . . . . . . . . . . . . . Garrisons Compromised . | . . . . . . . . . . . . . . . . . . . Overloaded Fab Kills . | . . . . . . . . . . . . . . . . . . . Fab Network Shutdowns 1 | . . . . . . . . . . . . . . . . . . 1 Hacking | -11 -10 -9 -8 -7 -7 -7 -7 -6 -6 -6 -5 -5 -4 -3 -3 -2 -2 -1 --------- Run | Scr Mat Mat Mat Fac Gar Fac Gar Fac Low Low Fac Ext Fac Res Gar Res Qua Acc Machines Accessed 108 | . 4 13 7 10 . 11 . 4 2 . 11 10 7 6 . 6 7 10 Terminals 68 | . 2 10 4 6 . 6 . 3 . . 7 10 4 3 . 4 6 3 Fabricators 7 | . . . . 1 . 1 . . . . 1 . 2 . . . . 2 Repair Stations 7 | . . 1 1 . . 1 . 1 . . . . . . . 1 1 1 Recycling Units 10 | . 2 2 . 2 . 1 . . . . 1 . . 1 . . . 1 Scanalyzers 5 | . . . 2 . . 1 . . . . . . . 1 . 1 . . Garrison Access 9 | . . . . 1 . 1 . . . . 2 . 1 1 . . . 3 Total Hacks 287 | . 11 44 18 26 . 27 . 11 2 . 22 22 18 13 . 15 33 25 Successful 181 | . 6 23 15 20 . 16 . 5 2 . 12 13 13 8 . 10 22 16 Failed 106 | . 5 21 3 6 . 11 . 6 . . 10 9 5 5 . 5 11 9 Catastrophic 7 | . 1 1 . 1 . 1 . . . . 1 . . 1 . 1 . . Database Lockouts . | . . . . . . . . . . . . . . . . . . . Manual 54 | . . 12 7 5 . 4 . 4 . . 10 . 3 . . 4 3 2 Terminals 201 | . 7 35 12 14 . 14 . 9 . . 17 22 12 6 . 10 31 12 Fabricators 16 | . . . . 2 . 4 . . . . 1 . 5 . . . . 4 Repair Stations 17 | . . 5 2 . . 2 . 2 . . . . . . . 2 2 2 Recycling Units 25 | . 4 4 . 8 . 3 . . . . 2 . . 3 . . . 1 Scanalyzers 11 | . . . 4 . . 2 . . . . . . . 2 . 3 . . Garrison Access 15 | . . . . 2 . 2 . . . . 2 . 1 2 . . . 6 Terminal Hacks 112 | . 4 16 9 9 . 6 . 3 2 . 7 13 8 2 . 6 20 7 Record 30 | . . . . 3 . 1 . . 1 . . 1 3 1 . 3 16 1 Part Schematic 3 | . . . . . . 1 . . . . . 1 . . . . 1 . Robot Schematic 1 | . . . . . . . . . . . 1 . . . . . . . Robot Analysis 6 | . 1 2 1 . . . . . . . . 2 . . . . . . Prototype ID Bank 5 | . 1 3 1 . . . . . . . . . . . . . . . Open Door 11 | . . . . . . . . . 1 . . 7 . . . 1 1 1 Branch Access Points 2 | . . . 1 . . . . . . . 1 . . . . . . . Emergency Access Points 1 | . . 1 . . . . . . . . . . . . . . . . Terminal Index 3 | . . 1 1 . . . . . . . 1 . . . . . . . Fabricator Index 2 | . . . 1 . . . . . . . 1 . . . . . . . Recycling Unit Index 1 | . . 1 . . . . . . . . . . . . . . . . Alert Level 7 | . . 1 2 1 . . . 1 . . . 1 . . . . . 1 Unreport Threat 21 | . 1 3 2 3 . 2 . 1 . . 2 1 2 . . 1 1 2 Locate Traps 1 | . . . . . . 1 . . . . . . . . . . . . Maintenance Status 1 | . . 1 . . . . . . . . . . . . . . . . Security Status 1 | . . . . . . . . . . . . . . . . . . 1 Investigation Status 1 | . . . . . . . . . . . . . 1 . . . . . Assault Status 1 | . . 1 . . . . . . . . . . . . . . . . Recall Investigation 2 | . . . . 1 . . . . . . . . 1 . . . . . Recall Extermination 1 | . . . . . . . . . . . . . 1 . . . . . Hauler Manifests 2 | . . 1 . . . 1 . . . . . . . . . . . . Zone Layout 9 | . 1 1 . 1 . . . 1 . . 1 . . 1 . 1 1 1 Fabricator Hacks 13 | . . . . 2 . 3 . . . . 1 . 4 . . . . 3 Network Status 2 | . . . . . . 1 . . . . . . . . . . . 1 Load Schematic 4 | . . . . 1 . 1 . . . . . . 2 . . . . . Build 7 | . . . . 1 . 1 . . . . 1 . 2 . . . . 2 Repair Station Hacks 16 | . . 4 2 . . 2 . 2 . . . . . . . 2 2 2 Scan Component 8 | . . 2 1 . . 1 . 1 . . . . . . . 1 1 1 Repair 8 | . . 2 1 . . 1 . 1 . . . . . . . 1 1 1 Recycling Unit Hacks 18 | . 2 2 . 7 . 3 . . . . 1 . . 2 . . . 1 Process 5 | . . . . 3 . 1 . . . . . . . 1 . . . . Report Inventory 5 | . . 1 . . . 1 . . . . 1 . . 1 . . . 1 Retrieve Matter 5 | . . . . 4 . 1 . . . . . . . . . . . . Retrieve Components 3 | . 2 1 . . . . . . . . . . . . . . . . Scanalyzer 8 | . . . 4 . . . . . . . . . . 2 . 2 . . Insert Component 4 | . . . 2 . . . . . . . . . . 1 . 1 . . Analyze 4 | . . . 2 . . . . . . . . . . 1 . 1 . . Garrison Access Hacks 12 | . . . . 2 . 2 . . . . 2 . 1 2 . . . 3 Unlock Access 3 | . . . . 1 . 1 . . . . . . . 1 . . . . Seal Access 5 | . . . . . . . . . . . 2 . . . . . . 3 Coupler Status 4 | . . . . 1 . 1 . . . . . . 1 1 . . . . Unauthorized Hacks 2 | . . 1 . . . . . . . . 1 . . . . . . . Terminals . | . . . . . . . . . . . . . . . . . . . Fabricators . | . . . . . . . . . . . . . . . . . . . Repair Stations . | . . . . . . . . . . . . . . . . . . . Recycling Units 2 | . . 1 . . . . . . . . 1 . . . . . . . Monitor 1 | . . . . . . . . . . . 1 . . . . . . . Mask 1 | . . 1 . . . . . . . . . . . . . . . . Scanalyzers . | . . . . . . . . . . . . . . . . . . . Garrison Access . | . . . . . . . . . . . . . . . . . . . Data Cores Recovered 1 | . . . . . . 1 . . . . . . . . . . . . Used 1 | . . . . . . 1 . . . . . . . . . . . . Hacking Detections 80 | . 3 11 7 9 . 9 . 3 . . 7 7 7 4 . 4 4 5 Full Trace Events 20 | . 1 3 1 2 . 3 . 2 . . 1 2 4 1 . . . . Feedback Events 2 | . . . . . . . . . . . 1 . 1 . . . . . Corruption 1 | . . . . . . . . . . . 1 . . . . . . . Hackware Fried 1 | . . . . . . . . . . . . . 1 . . . . . Feedback Blocked . | . . . . . . . . . . . . . . . . . . . Robot Schematics Acquired 1 | . . . . . . . . . . . 1 . . . . . . . Robots Built 2 | . . . . . . . . . . . . . 1 . . . . 1 Matter 987 | . . . . . . . . . . . . . 153 . . . . 834 Time 303 | . . . . . . . . . . . . . 81 . . . . 222 Total Robot Build Rating 10 | . . . . . . . . . . . . . 1 . . . . 9 Part Schematics Acquired 7 | . . . 2 . . 1 . . . . . 1 . 1 . 1 1 . Parts Built 6 | . . . . 2 . 2 . . . . 1 . 1 . . . . . Matter 848 | . . . . 146 . 190 . . . . 278 . 234 . . . . . Time 298 | . . . . 73 . 47 . . . . 139 . 39 . . . . . Total Part Build Rating 32 | . . . . 6 . 10 . . . . 9 . 7 . . . . . Parts Repaired 8 | . . 2 1 . . 1 . 1 . . . . . . . 1 1 1 Time 198 | . . 52 26 . . 14 . 32 . . . . . . . 25 16 33 Parts Recycled . | . . . . . . . . . . . . . . . . . . . Recycled Matter 76 | . . . . 64 . 6 . . . . . . . 6 . . . . Retrieved Matter 70 | . . . . 64 . 6 . . . . . . . . . . . . Retrieved Components 20 | . 11 9 . . . . . . . . . . . . . . . . Parts Scanalyzed 4 | . . . 2 . . . . . . . . . . 1 . 1 . . Part Schematics Acquired 4 | . . . 2 . . . . . . . . . . 1 . 1 . . Parts Damaged . | . . . . . . . . . . . . . . . . . . . Bothacking | -11 -10 -9 -8 -7 -7 -7 -7 -6 -6 -6 -5 -5 -4 -3 -3 -2 -2 -1 ------------ Run | Scr Mat Mat Mat Fac Gar Fac Gar Fac Low Low Fac Ext Fac Res Gar Res Qua Acc Used RIF Installer 3 | . . . . . 1 . 1 . . . . . . . 1 . . . Coupler Efficiency 1 | . . . . . . . . . . . . . . . 1 . . . Signal Jammer 1 | . . . . . . . 1 . . . . . . . . . . . Robots Hacked 27 | . . . . . . . 2 5 . . 5 3 2 4 2 . 4 . Non-combat 4 | . . . . . . . . 2 . . . . 1 . . . 1 . Combat 23 | . . . . . . . 2 3 . . 5 3 1 4 2 . 3 . Robot Hacks Applied 32 | . . . . . . . 3 9 . . 5 3 2 4 2 . 4 . parse_system 6 | . . . . . . . . 3 . . . 1 . . . . 2 . no_distress 1 | . . . . . . . . 1 . . . . . . . . . . find_chute 1 | . . . . . . . . . . . . . 1 . . . . . find_fabricator 1 | . . . . . . . . 1 . . . . . . . . . . link_complan 1 | . . . . . . . 1 . . . . . . . . . . . broadcast_data 1 | . . . . . . . . 1 . . . . . . . . . . disrupt_area 1 | . . . . . . . . . . . . . . . 1 . . . spike_heat 4 | . . . . . . . . . . . 4 . . . . . . . overload_power 3 | . . . . . . . 1 . . . 1 . . . 1 . . . reboot_system 1 | . . . . . . . . . . . . . . 1 . . . . go_dormant 2 | . . . . . . . . . . . . 2 . . . . . . streamctrl_high 3 | . . . . . . . . 1 . . . . 1 1 . . . . formatsys_high 7 | . . . . . . . 1 2 . . . . . 2 . . 2 . Relay Couplers Released 17 | . . . . . 7 . 6 . . . . . . . 4 . . . Machine Destruction 17 | . . . . . 7 . 6 . . . . . . . 4 . . . Attached 7 | . . . . . . . 3 1 . . . . 1 . . 1 1 . Robots Rewired 12 | . . . . . . . . . . . . 11 1 . . . . . Allies Hacked 2 | . . . . . . . . . . . . . . . . . 1 1 Hacks Repelled . | . . . . . . . . . . . . . . . . . . . Allies | -11 -10 -9 -8 -7 -7 -7 -7 -6 -6 -6 -5 -5 -4 -3 -3 -2 -2 -1 -------- Run | Scr Mat Mat Mat Fac Gar Fac Gar Fac Low Low Fac Ext Fac Res Gar Res Qua Acc Total Allies 83 | . . . . . . . 1 3 . . . 20 3 3 . . 10 43 Largest Group 13 | . . . . . . . . 1 . . . 8 3 2 . . 9 13 Highest-Rated Group 220 | . . . . . . . . 32 . . . 220 109 91 . . 180 187 Highest-Rated Ally 156 | . . . . . . . . 32 . . . 156 47 47 . . 69 64 Total Orders 5 | . . . . . . . . 1 . . . . 1 . . . 3 . ROAM 2 | . . . . . . . . . . . . . 1 . . . 1 . FOLLOW 2 | . . . . . . . . . . . . . . . . . 2 . GUARD 1 | . . . . . . . . 1 . . . . . . . . . . Ally Attacks 346 | . . . . . . . . 16 . . . 94 26 18 . . 77 115 Total Damage 7328 | . . . . . . . . 768 . . . 1962 430 379 . . 1475 2314 Kills 45 | . . . . . . . . 7 . . . 14 . 3 . . 8 13 Allies Corrupted 2 | . . . . . . . . . . . . . . 1 . . . 1 Allies Melted 1 | . . . . . . . . 1 . . . . . . . . . . Intel | -11 -10 -9 -8 -7 -7 -7 -7 -6 -6 -6 -5 -5 -4 -3 -3 -2 -2 -1 ------- Run | Scr Mat Mat Mat Fac Gar Fac Gar Fac Low Low Fac Ext Fac Res Gar Res Qua Acc Robot Analysis Total 6 | . 1 2 1 . . . . . . . . 2 . . . . . . Derelict Logs Recovered 3 | . . . . . . . . . 2 1 . . . . . . . . Drone Launches . | . . . . . . . . . . . . . . . . . . . Drone Recoveries . | . . . . . . . . . . . . . . . . . . . Exploration | -11 -10 -9 -8 -7 -7 -7 -7 -6 -6 -6 -5 -5 -4 -3 -3 -2 -2 -1 ------------- Run | Scr Mat Mat Mat Fac Gar Fac Gar Fac Low Low Fac Ext Fac Res Gar Res Qua Acc Turns Passed 12751 | 89 1004 1126 1020 599 764 757 664 685 307 127 991 786 824 664 360 513 576 895 Spaces Moved 17980 | 55 674 1385 864 1005 1121 1320 924 778 943 447 1723 1024 1061 969 382 1032 924 1349 Core 21 | 7 . . 14 . . . . . . . . . . . . . . . Treads . | . . . . . . . . . . . . . . . . . . . Legs 741 | 48 674 19 . . . . . . . . . . . . . . . . Wheels . | . . . . . . . . . . . . . . . . . . . Hover . | . . . . . . . . . . . . . . . . . . . Flight 17218 | . . 1366 850 1005 1121 1320 924 778 943 447 1723 1024 1061 969 382 1032 924 1349 Fastest Speed 22 | 50 120 27 27 27 27 27 27 27 27 27 24 24 24 22 22 22 22 22 Average Speed 30 | 111 120 34 28 27 27 27 27 27 27 27 24 24 24 26 22 22 22 25 Slowest Speed 120 | 120 120 120 100 29 27 27 27 27 99 27 27 24 24 98 22 22 22 26 Overloaded Moves . | . . . . . . . . . . . . . . . . . . . Propulsion Burnouts . | . . . . . . . . . . . . . . . . . . . Robots Hopped 78 | . . 13 18 1 . 2 . 1 . . 15 9 4 3 1 3 5 3 Cave-ins Triggered 1 | . . . . . . . . . . . . 1 . . . . . . Teleports 2 | . . . . . . . . . . . . . . . . . 2 . Exploration Rate (%) 48 | 4 93 74 50 28 81 28 87 17 91 65 27 85 20 21 53 16 52 36 Regions Visited 18 Branch Regions 4 Pre-discovered Areas 1 | . . . . . . . . . . 1 . . . . . . . . Known Exits Taken 8 | . . . . 1 . 1 . . . . 1 1 1 1 . 1 1 . Unknown Exits Taken 7 | 1 1 1 1 . . . . 1 1 1 . . . . . . . . Scrap Searched 11 | . . . . . . . . . 10 1 . . . . . . . . Spaces Dug 52 | . . . . . . 1 . 2 . . 3 1 9 . . 10 2 24 Terrain Destroyed 194 | . 16 15 17 38 . 1 12 2 . . 4 37 14 . 2 10 2 24 Melee 47 | . . . . . . 1 . 2 . . 3 1 4 . . 10 2 24 Projectile 30 | . . . . . . . 4 . . . 1 13 10 . 2 . . . AOE 117 | . 16 15 17 38 . . 8 . . . . 23 . . . . . . Terrain Rammed . | . . . . . . . . . . . . . . . . . . . Walls Destroyed . | . . . . . . . . . . . . . . . . . . . Machines Disabled . | . . . . . . . . . . . . . . . . . . . Actions | -11 -10 -9 -8 -7 -7 -7 -7 -6 -6 -6 -5 -5 -4 -3 -3 -2 -2 -1 --------- Run | Scr Mat Mat Mat Fac Gar Fac Gar Fac Low Low Fac Ext Fac Res Gar Res Qua Acc Total 23435 | 71 774 1843 1520 1254 1429 1632 1213 1209 977 452 2147 1435 1491 1301 532 1215 1197 1743 Wait 3199 | 4 22 295 529 146 43 190 59 352 23 . 274 191 302 229 17 104 158 261 Move 17808 | 54 673 1358 831 1002 1119 1315 922 775 942 446 1693 1007 1052 961 378 1025 913 1342 Hop 71 | . . 13 14 1 . 2 . 1 . . 14 7 4 3 1 3 5 3 Pick Up 93 | 3 3 6 3 6 14 9 2 3 1 1 4 8 4 9 3 4 9 1 Fast Attach 100 | 3 8 10 4 11 3 5 3 3 . . 6 2 2 4 1 4 10 21 Attach 42 | 2 . 3 1 2 7 3 . 1 2 . 1 4 1 4 1 1 9 . Detach 5 | . . . 1 . . . . . . . . . . . . 1 2 1 Swap 99 | . . 5 7 1 . 10 11 4 . 1 8 6 12 9 9 6 5 5 Drop 153 | . 6 14 9 11 13 12 4 7 1 . 12 8 4 12 2 8 9 21 Fire 673 | 5 47 100 71 37 68 34 48 13 5 . 31 66 51 15 29 26 11 16 Melee 399 | . . . . 12 32 20 37 24 3 . 56 14 23 27 32 19 40 60 Ram . | . . . . . . . . . . . . . . . . . . . Kick . | . . . . . . . . . . . . . . . . . . . Crush . | . . . . . . . . . . . . . . . . . . . Escape Stasis 246 | . . . . . 95 . 82 . . . . 39 13 4 10 . . 3 Rewire . | . . . . . . . . . . . . . . . . . . . Trap 9 | . . . . . . . 9 . . . . . . . . . . . Miscellaneous 538 | . 15 39 50 25 35 32 36 26 . 4 48 83 23 24 49 14 26 9 Route ------- -11/Scrapyard -10/Materials (discovered 4 exits: *Mat x3 / [*Min]) -9/Materials (discovered 6 exits: *Mat x2 / [*Min x2] / [*Sto x2]) -8/Materials -7/Factory (discovered 2 exits: *Fac / Gar) -7/Garrison (discovered 3 exits: *Fac x3) -7/Factory -7/Garrison (discovered 3 exits: *Fac x3) -6/Factory (discovered 3 exits: *Fac / *Low x2) -6/Lower Caves -6/Lower Caves -5/Factory (discovered 5 exits: Fac / *Upp x2 / *Ext x2) -5/Extension (discovered 2 exits: *Fac / *Cet) -4/Factory -3/Research -3/Garrison -2/Research -2/Quarantine -1/Access To Fleet Rendezvous History --------- Turn | Location | Event 2 | -11/Scrapyard | Upgraded with Propulsion slot (x1) 2 | -11/Scrapyard | Upgraded with Utility slot (x1) 2 | -11/Scrapyard | Upgraded with Weapon slot (x1) 6 | -11/Scrapyard | Discovered new exit (range 17) 90 | -11/Scrapyard | Entered Materials 246 | -10/Materials | Upgraded with Utility slot (x1) 300 | -10/Materials | Build established: Mutant 376 | -10/Materials | Discovered new exit (range 10) 605 | -10/Materials | Discovered new exit (range 9) 635 | -10/Materials | Discovered new exit (range 11) 833 | -10/Materials | Reached level 2 916 | -10/Materials | Upgraded with Utility slot (x1) 1071 | -10/Materials | Discovered new exit (range 3) 1094 | -10/Materials | Entered another Materials area 1096 | -9/Materials | Reached level 3 1096 | -9/Materials | Upgraded with Propulsion slot (x1) 1302 | -9/Materials | Discovered new exit (range 12) 1422 | -9/Materials | Reached level 4 1438 | -9/Materials | Build established: Scavenger-Mutant 1652 | -9/Materials | Discovered new exit (range 17) 1758 | -9/Materials | Reached level 5 1763 | -9/Materials | Discovered new exit (range 8) 1776 | -9/Materials | Upgraded with Propulsion slot (x1) 1880 | -9/Materials | Repaired Flight Unit 1911 | -9/Materials | Repaired Flight Unit 2088 | -9/Materials | Discovered new exit (range 11) 2147 | -9/Materials | Reached level 6 2163 | -9/Materials | Discovered new exit (range 12) 2218 | -9/Materials | Discovered new exit (range 7) 2220 | -9/Materials | Entered another Materials area 2220 | -8/Materials | Upgraded with Utility slot (x1) 2222 | -8/Materials | Reached level 7 2302 | -8/Materials | Repaired Lgt. Armor Plating 2331 | -8/Materials | Discovered new exit (range 16) 2748 | -8/Materials | Reached level 8 2990 | -8/Materials | Reached level 9 3020 | -8/Materials | First assault squad dispatched 3128 | -8/Materials | Reached level 10 3167 | -8/Materials | Build established: Sprinter 3197 | -8/Materials | Reached level 11 3235 | -8/Materials | Destroyed 8 combat bots 3240 | -8/Materials | Entered Factory 3242 | -7/Factory | Reached level 12 3269 | -7/Factory | Upgraded with Utility slot (x2) 3283 | -7/Factory | Discovered new exit (range 17) 3414 | -7/Factory | Fabricated Imp. Light Armor Plating? 3605 | -7/Factory | Build established: Hacker-Sprinter 3624 | -7/Factory | Garrison activated, responded to threat 3688 | -7/Factory | Reached level 13 3837 | -7/Factory | Identified exit to Garrison 3839 | -7/Factory | Entered Garrison 3868 | -7/Garrison | Garrison Relay disabled 3868 | -7/Garrison | Reached level 14 3906 | -7/Garrison | Triggered checkpoint 4219 | -7/Garrison | Destroyed 7 combat bots 4238 | -7/Garrison | Triggered checkpoint 4238 | -7/Garrison | Garrison Relay disabled 4238 | -7/Garrison | Reached level 15 4241 | -7/Garrison | Upgraded with Weapon slot (x1) 4245 | -7/Garrison | Upgraded with Weapon slot (x1) 4255 | -7/Garrison | Discovered new exit (range 12) 4298 | -7/Garrison | Discovered new exit (range 11) 4306 | -7/Garrison | Garrison Relay disabled 4314 | -7/Garrison | Triggered checkpoint 4362 | -7/Garrison | Triggered checkpoint 4369 | -7/Garrison | Core integrity fell below 50% 4467 | -7/Garrison | Garrison Relay disabled 4472 | -7/Garrison | Triggered checkpoint 4529 | -7/Garrison | Discovered new exit (range 8) 4532 | -7/Garrison | Installed Relay Interface Framework 4603 | -7/Garrison | Entered Factory 4686 | -7/Factory | Repaired Imp. Medium Armor Plating 4967 | -7/Factory | Reached level 16 5119 | -7/Factory | Fabricated Power Sword? 5359 | -7/Factory | Identified exit to Garrison 5360 | -7/Factory | Entered Garrison 5375 | -7/Garrison | Triggered checkpoint 5376 | -7/Garrison | Triggered checkpoint 5421 | -7/Garrison | Destroyed 8 combat bots 5484 | -7/Garrison | Triggered checkpoint 5504 | -7/Garrison | Garrison Relay disabled 5513 | -7/Garrison | Discovered new exit (range 11) 5566 | -7/Garrison | Triggered checkpoint 5707 | -7/Garrison | Garrison Relay disabled 5733 | -7/Garrison | Discovered new exit (range 16) 5740 | -7/Garrison | Expanded RIF knowledge: Signal Jamming 5788 | -7/Garrison | Reached level 17 5836 | -7/Garrison | Triggered checkpoint 5856 | -7/Garrison | Garrison Relay disabled 5870 | -7/Garrison | Discovered new exit (range 12) 5900 | -7/Garrison | Triggered checkpoint 5998 | -7/Garrison | Garrison Relay disabled 6024 | -7/Garrison | Entered Factory 6031 | -6/Factory | Discovered new exit (range 7) 6049 | -6/Factory | Build established: Bothacker-Sprinter 6127 | -6/Factory | Reached level 18 6209 | -6/Factory | Repaired EMP Blaster 6488 | -6/Factory | Discovered new exit (range 12) 6496 | -6/Factory | Upgraded with Utility slot (x1) 6600 | -6/Factory | Garrison activated, responded to threat 6631 | -6/Factory | Discovered new exit (range 14) 6709 | -6/Factory | Entered Lower Caves 6822 | -6/Lower Caves | Attracted the attention of an 0b10 checkpoint 6853 | -6/Lower Caves | Learned Factory terminal intel 6859 | -6/Lower Caves | Spotted B-75 Beast 6874 | -6/Lower Caves | Learned location of 1 exit from Factory 6962 | -6/Lower Caves | Discovered new exit (range 5) 6980 | -6/Lower Caves | Learned Research garrison access intel 7016 | -6/Lower Caves | Entered another Lower Caves area 7017 | -6/Lower Caves | Encountered a Warlord checkpoint 7077 | -6/Lower Caves | Learned location of Extension (-5) 7142 | -6/Lower Caves | Discovered new exit (range 8) 7143 | -6/Lower Caves | Entered Factory 7144 | -5/Factory | Identified exit to Factory 7145 | -5/Factory | Loaded intel: 21 terminal locations 7145 | -5/Factory | Reached level 19 7187 | -5/Factory | Core integrity fell below 50% 7213 | -5/Factory | Upgraded with Propulsion slot (x1) 7249 | -5/Factory | Found Prototype Processor 7250 | -5/Factory | Identified Exp. Signal Interpreter 7252 | -5/Factory | Upgraded with Power slot (x1) 7361 | -5/Factory | Reached level 20 7416 | -5/Factory | Discovered new exit (range 6) 7455 | -5/Factory | Identified exit to Upper Caves 7493 | -5/Factory | Discovered new exit (range 13) 7495 | -5/Factory | Identified exit to Extension 7547 | -5/Factory | Build established: Bothacker-Ninja 7701 | -5/Factory | Fabricated Imp. Stasis Canceller (x1) 8092 | -5/Factory | Build established: Bothacker-Scout 8134 | -5/Factory | Entered Extension 8136 | -5/Extension | Reached level 21 8211 | -5/Extension | Spotted B-75 Beast 8279 | -5/Extension | Upgraded with Utility slot (x1) 8288 | -5/Extension | Rescued a captive Derelict 8404 | -5/Extension | Rescued a captive Derelict 8408 | -5/Extension | Rescued a captive Derelict 8581 | -5/Extension | Build established: Hacker-Ninja 8596 | -5/Extension | Rescued a captive Derelict 8597 | -5/Extension | Rescued a captive Derelict 8611 | -5/Extension | Spotted B-75 Beast 8665 | -5/Extension | Rescued a captive Derelict 8750 | -5/Extension | Rescued a captive Derelict 8751 | -5/Extension | Rescued a captive Derelict 8799 | -5/Extension | Energy Cycler disabled 8808 | -5/Extension | Rescued A7 8824 | -5/Extension | Reached level 22 8826 | -5/Extension | Crushed by falling debris 8895 | -5/Extension | Discovered exit to Factory (range 10) 8896 | -5/Extension | Discovered new exit (range 6) 8906 | -5/Extension | Identified exit to Cetus 8920 | -5/Extension | Entered Factory 8920 | -4/Factory | Accompanied by 3 allies (A7) 8922 | -4/Factory | Reached level 23 9145 | -4/Factory | Fabricated Adv. Cryofiber Web? 9282 | -4/Factory | Core integrity fell below 50% 9539 | -4/Factory | Reached level 24 9610 | -4/Factory | Build established: Hacker-Scout 9697 | -4/Factory | Fabricated K-01 Serf? 9715 | -4/Factory | Adv. Hacking Suite fried by hacking feedback 9740 | -4/Factory | Discovered new exit (range 14) 9743 | -4/Factory | Identified exit to Research 9744 | -4/Factory | Entered Research 9745 | -3/Research | Loaded intel: 4 garrison access locations 9745 | -3/Research | Core integrity fell below 50% 9746 | -3/Research | Reached level 25 9850 | -3/Research | Core integrity fell below 20% 10060 | -3/Research | Reached level 26 10407 | -3/Research | Identified exit to Garrison 10408 | -3/Research | Entered Garrison 10422 | -3/Garrison | Triggered checkpoint 10492 | -3/Garrison | Garrison Relay disabled 10550 | -3/Garrison | Reached level 27 10625 | -3/Garrison | Triggered checkpoint 10746 | -3/Garrison | Triggered checkpoint 10755 | -3/Garrison | Garrison Relay disabled 10763 | -3/Garrison | Discovered new exit (range 11) 10765 | -3/Garrison | Identified exit to Research 10767 | -3/Garrison | Expanded RIF knowledge: Coupler Efficiency 10768 | -3/Garrison | Entered Research 10769 | -2/Research | Core integrity fell below 50% 10770 | -2/Research | Reached level 28 10848 | -2/Research | Reached level 29 10873 | -2/Research | Repaired Lyr. Medium Armor Plating 10922 | -2/Research | Upgraded with Utility slot (x1) 11016 | -2/Research | Found Prototype Device 11016 | -2/Research | Identified Thermal Barrier 11268 | -2/Research | First assault squad dispatched 11269 | -2/Research | Discovered new exit (range 9) 11281 | -2/Research | Identified exit to Quarantine 11281 | -2/Research | Entered Quarantine 11283 | -2/Quarantine | Reached level 30 11284 | -2/Quarantine | Spotted Alpha 7 11296 | -2/Quarantine | Found Alien Launcher 11297 | -2/Quarantine | Identified Sigix Terminator 11336 | -2/Quarantine | Core integrity fell below 20% 11337 | -2/Quarantine | Destroyed Alpha 7 11418 | -2/Quarantine | Found Alien Artifact 11419 | -2/Quarantine | Identified Terrabomb 11419 | -2/Quarantine | Used Terrabomb 11451 | -2/Quarantine | Repaired Lyr. Medium Armor Plating 11568 | -2/Quarantine | Found Alien Artifact 11569 | -2/Quarantine | Identified Transdimensional Reconstructor 11569 | -2/Quarantine | Warped through subspace 11581 | -2/Quarantine | Discovered new exit (range 12) 11600 | -2/Quarantine | Found Alien Artifact 11600 | -2/Quarantine | Identified Hpw. Transdimensional Reconstructor 11600 | -2/Quarantine | Warped through subspace 11646 | -2/Quarantine | Build established: Hacker-Ninja 11660 | -2/Quarantine | Found Alien Artifact 11660 | -2/Quarantine | Identified Core Reset Matrix 11660 | -2/Quarantine | Reached level 31 11660 | -2/Quarantine | Used Core Reset Matrix 11664 | -2/Quarantine | Detected hypermatrix surge 11664 | -2/Quarantine | Sensed 13 artifacts in vicinity 11668 | -2/Quarantine | Discovered new exit (range 8) 11707 | -2/Quarantine | Found Subatomic Replicator 11771 | -2/Quarantine | Emitted hypermatrix ping 11776 | -2/Quarantine | Assembled emerged from beneath the floor 11849 | -2/Quarantine | Identified exit to Access 11857 | -2/Quarantine | Entered Access 11857 | -1/Access | Accompanied by 2 allies 11858 | -1/Access | Core integrity fell below 50% 11859 | -1/Access | Reached level 32 11934 | -1/Access | Found Unknown Device 11934 | -1/Access | Identified Launcher Loader 11976 | -1/Access | Repaired Imp. KE Penetrator 12020 | -1/Access | Reached level 33 12025 | -1/Access | Emitted hypermatrix ping 12030 | -1/Access | Assembled emerged from beneath the floor 12040 | -1/Access | Used Subatomic Replicator to create Supercharged Sigix Terminator 12096 | -1/Access | Assembled emerged from beneath the floor 12111 | -1/Access | Assembled emerged from beneath the floor 12162 | -1/Access | Assembled emerged from beneath the floor 12242 | -1/Access | Core integrity fell below 20% 12291 | -1/Access | Fabricated C-65 Expert? 12425 | -1/Access | Spotted B-99 Colossus 12455 | -1/Access | Assembled emerged from beneath the floor 12570 | -1/Access | Local fabrication network quarantined 12597 | -1/Access | Reached level 34 12634 | -1/Access | Spotted B-99 Colossus 12634 | -1/Access | Spotted B-99 Colossus 12728 | -1/Access | Assembled emerged from beneath the floor 12741 | -1/Access | Discovered new exit (range 7) 12742 | -1/Access | Identified exit to Surface 12752 | *** | Heading to fleet! Last Messages --------------- 12737_ A-15 Conveyor calls for reinforcements. 12737_ ALERT: Hostile activity reported, dispatching reinforcements to area. 12738_ Slug penetrates G-73 Enforcer. 12738_ K-01 Serf destroyed. 12740_ Slug penetrates G-73 Enforcer. 12740_ K-01 Serf collects debris. 12741_ Connecting with Terminal... >>Open Sealed Barrier opened. 12741_ The Access Shell folds into the floor. 12741_ EXIT=FOUND 12741_ G-73 Enforcer destroyed. 12742_ EXIT=IDENTIFIED: SURFACE 12743_ K-01 Serf collects debris. [Achievement: 10k Club] [Achievement: 20k Club] [Achievement: 30k Club] [Achievement: Home At Last?] [Achievement: Achiever] Map ----- +----------------------------------------------------+ | ??????????????????????# # """ #???????????? | | ??????????????????????# # " #???????????? | | ??????????????????????# ####"################## | | ??????????????????????# | | ??????????????????????# ########## | | ??????????????????????# #????????# ###+####### | | ??????????????????????+ #????????# # | | ??????????????????????# #????????# # | | ??????????????????????# #????????# # | | ??????????????????????# #????????# # | | ?????????????????????? ????????# # | | ?????????????????????? ????????# # | | ?????????????????????? ????????# # | | ????????????????????? ????????# # | | ????????????????????? ????????# # | | ????????????????????? ????????# # !| | | ???????????????????? ????????# # !| | | ????????????????????""""""""????????# # || | | ????????????????????????????????????# ########### | | ????????????????????????????????????# #?????????# | | ???????????????????#""""""""""#?????# #?????????# | | ???????????????????# #?????# #?????????# | | ???????????????????# #?????# ########### | | ???????????????????# a #?????# # ! # | | ???????????????????# a" #?????# # # | | ???????????????????# a@ #?????# + " # | | ???????????????????# aa #?????# # """ # | | ???????????????????# a #?????#w + """ # | | ???????????????????# #?????# # " " | | ??????????????????## ##????# # # | | ??????????????????# #????# # # | | ??????????????????##"" ##????# ########### | | ???????????????????#"" #?????# # ""S""" | | ???????????????????#"" #?????# # " """ | | ???????????????????#T #?????# + | | ???????????????????#"" #?????# # | | ???????????????????#"" k #?????# # | | ????????????##+#####"" ! ####### # | | ??????? !%%= k + [% | | ?????? ** ########### | | ??????#+###########################+#+#####??????? | | ????????????????????????????????# #??????? | | ????????????????????????????????# #??????? | | ????????????????????????????????# """"" #??????? | | ????????????????????????????????# ""T"" #??????? | | ????????????????????????????????# #??????? | | ????????????????????????????????# #??????? | | ????????????????????????????????# #??????? | | ????????????????????????????????# #??????? | | ????????????????????????????????###########??????? | +----------------------------------------------------+ Best States ------------- Heat Dissipation 55 Energy Generation 41 Energy Capacity 290 Matter Stores 300 Matter Capacity 300 Sight Range 22 Robot Scan Range 30 Terrain Scan Density 10 ECM Strength 2 Cloak Strength 3 Armor Coverage 450 Resistance: KI 10 Resistance: TH 5 Resistance: EX 5 Weapon Cycling 15 Phase Shifting 15 Evasion (%) 92 Targeting Accuracy 8 Melee Accuracy 8 Target Analysis 8 Core Analysis 6 Stasis Canceling 2 Offensive Hacking 44 Defensive Hacking 20 Relay Coupler Types 194 Relay Coupler Value 3 Item Schematics ----------------- None Robot Schematics ------------------ None Fabricated ------------ Imp. Light Armor Plating | x2 | -7/Factory Power Sword | x2 | -7/Factory Imp. Stasis Canceller | x1 | -5/Factory | Preloaded Adv. Cryofiber Web | x1 | -4/Factory K-01 Serf | x1 | -4/Factory C-65 Expert | x1 | -1/Access | Preloaded Alien Tech Used ----------------- Sigix Terminator Terrabomb Transdimensional Reconstructor High-powered Transdimensional Reconstructor Core Reset Matrix Subatomic Replicator Achievements -------------- 10k Club 20k Club 30k Club Achiever Alien Roots Alien Tech Armchair Analyst Assimilation Complete Beloved Can't Catch Me Dangerous Findings Deadly Force Denied? Dodgeball, But With Guns Error 47 Factory Defaults Home At Last? Infiltrator Maximum Efficiency No Signal Prison Break Respectable Loadout Slippery One Subspace Traveler Use The Force Watch This! Challenges ------------ None RPGLIKE | -11 -10 -9 -8 -7 -7 -7 -7 -6 -6 -6 -5 -5 -4 -3 -3 -2 -2 -1 --------- Run | Scr Mat Mat Mat Fac Gar Fac Gar Fac Low Low Fac Ext Fac Res Gar Res Qua Acc Levels Raised 33 | . 1 4 5 2 2 1 1 1 . . 2 2 2 2 1 2 2 3 XP Earned 53022 | 3000 1935 5715 7656 3532 3249 764 1421 1672 330 244 2900 2493 2970 3083 2003 3049 2821 4185 XP Spent 48480 | 1950 2110 4700 2870 6870 4650 2040 . 2300 . . 2620 3800 1900 3090 800 5175 2100 1505 Upgrades 85 | 6 7 9 7 7 4 3 . 1 . . 8 2 6 8 4 5 1 7 Power Slot 1 | . . . . . . . . . . . 1 . . . . . . . Propulsion Slot 4 | 1 . 2 . . . . . . . . 1 . . . . . . . Utility Slot 9 | 1 2 . 1 2 . . . 1 . . . 1 . . . 1 . . Weapon Slot 3 | 1 . . . . 2 . . . . . . . . . . . . . Core Integrity 23 | . 4 . 4 . . . . . . . 4 . . 4 . . . 7 Heat Dissipation 5 | . 1 . . 1 . 1 . . . . 2 . . . . . . . Energy Generation 2 | . . 1 1 . . . . . . . . . . . . . . . Energy Storage 1 | . . . . . . 1 . . . . . . . . . . . . Mass Support 5 | 1 . 1 . . . . . . . . . . 1 1 . . 1 . Inventory Capacity 7 | 1 . 2 . 1 2 1 . . . . . . . . . . . . Sight Range 2 | 1 . . . 1 . . . . . . . . . . . . . . Sensor Range 7 | . . 1 . . . . . . . . . . 3 1 . 2 . . Melee Accuracy 2 | . . . . . . . . . . . . . 2 . . . . . Hack Attack % 6 | . . 2 1 2 . . . . . . . 1 . . . . . . Hack Defense % 4 | . . . . . . . . . . . . . . 2 . 2 . . KI Resistance % 2 | . . . . . . . . . . . . . . . 2 . . . TH Resistance % 1 | . . . . . . . . . . . . . . . 1 . . . EX Resistance % 1 | . . . . . . . . . . . . . . . 1 . . . Protomatter Created 3544 | . 141 315 358 252 364 273 294 90 . . 316 160 161 193 341 106 138 42 Integrity Restored 11633 | . 291 813 1073 507 747 693 734 591 . 96 1083 1822 465 537 1077 318 585 201 Core 10306 | . 228 752 855 427 538 693 650 591 . 96 1083 1389 286 537 1077 318 585 201 Parts 1327 | . 63 61 218 80 209 . 84 . . . . 433 179 . . . . . Protomatter Decayed 1012 | . 40 . 1 16 58 42 48 98 10 . 9 170 167 63 11 . 79 200 Game ------ Seed TacticalCoreCorpse Manual? 0 Play Time 06:55:29 Cumulative 45.4 hours Start 2021.04.13 @ 16:22:09 End 2021.04.14 @ 01:45:56 Sessions 1 Manual Loads 0 Difficulty Rogue Special Mode Winter2019/RPGLIKE Game No. 26 Rogue 26 Adventurer 0 Explorer 0 Win Type 2 Total 1 Types 0/0/1/0/0/0/0/0/0 Lore% 33 Gallery% 42 Achievement% 31 Wizard Run 0 Options --------- ASCII 0 Keyboard 0 Movement Numpad Keybinds 0 Fullscreen 2 Font 18/SmallcapsGlow Map View 76x50 Tactical HUD 1 Map Filters NONE Filters NONE Steam 1 RUN: 7caf4c8a-ffe9-4f38-8992-a5d1ec5094a2